bitfinex/quotes_SOLUSD_20250928
["timestamp","ask_amount","ask_price","bid_price","bid_amount"]
[1759085222389,4.3531614,206.44,206.43,20.0]
[1759085222589,41.4131614,206.44,206.43,20.0]
[1759085223179,40.6931614,206.44,206.43,24.84425713]
[1759085223591,3.6331614,206.44,206.43,25.49425713]
[1759085223788,0.1,206.45,206.43,25.49425713]
[1759085224100,37.06,206.44,206.43,24.84425713]
[1759085224398,37.16,206.45,206.43,24.84425713]
[1759085224609,37.16,206.45,206.44,0.65]
[1759085224781,3.73131639,206.45,206.44,0.65]
[1759085224977,0.1,206.45,206.44,15.22265684]
[1759085225181,0.1,206.45,206.44,20.06667931]
[1759085226401,0.1,206.45,206.44,22.70310074]
[1759085226778,3.26653919,206.53,206.45,13.59559401]
[1759085227111,5.51354745,206.61,206.45,13.59559401]
[1759085227112,2.53409628,206.69,206.66,20.0]
[1759085227278,2.53409628,206.69,206.66,27.47528719]
[1759085227594,26.0,206.71,206.66,27.47528719]
[1759085227798,0.72,206.76,206.72,20.0]
[1759085228096,26.72,206.76,206.73,2.63642143]
[1759085228279,37.54,206.81,206.73,2.63642143]
[1759085228593,37.54,206.81,206.72,20.0]
[1759085228594,11.59535579,206.74,206.72,20.0]
[1759085228794,3.35642143,206.73,206.66,14.55215736]
[1759085228996,28.63642143,206.69,206.67,20.0]
[1759085229182,10.87535579,206.74,206.66,14.55215736]
[1759085229183,0.72,206.68,206.66,14.55215736]
[1759085229384,26.72,206.67,206.66,14.55215736]
[1759085229785,38.34,206.67,206.66,14.55215736]
[1759085230098,64.36,206.67,206.65,20.0]
[1759085230299,26.72,206.67,206.65,20.0]
[1759085230478,64.36,206.67,206.65,20.0]
[1759085230679,0.72,206.69,206.67,20.0]
[1759085230899,32.6,206.68,206.67,20.0]
[1759085231097,40.99642143,206.68,206.66,14.5585131]
[1759085231395,26.0,206.65,206.63,20.0]
[1759085231599,38.35,206.64,206.63,20.0]
[1759085231792,0.71,206.64,206.61,20.0]
[1759085231979,0.71,206.69,206.66,20.0]
[1759085232496,26.0,206.67,206.66,20.0]
[1759085232794,2.39208773,206.71,206.69,20.0]
[1759085232996,10.87535579,206.74,206.69,20.0]
[1759085232997,1.68208773,206.73,206.69,20.0]
[1759085233207,1.68208773,206.73,206.72,20.0]
[1759085233385,40.11208773,206.73,206.72,20.0]
[1759085233584,40.13208773,206.73,206.72,20.0]
[1759085233800,36.87535579,206.74,206.72,20.0]
[1759085233801,10.87535579,206.74,206.72,26.51949646]
[1759085233988,10.87535579,206.74,206.73,1.68208773]
[1759085234190,10.87535579,206.74,206.72,24.83740873]
[1759085234488,10.87535579,206.74,206.73,29.45768174]
[1759085235085,8.83622658,206.74,206.73,29.45768174]
[1759085235280,6.79709737,206.74,206.73,29.45768174]
[1759085235698,6.79709737,206.74,206.73,14.18]
[1759085235899,6.79709737,206.74,206.73,15.86208773]
[1759085236200,6.79709737,206.74,206.73,27.77559401]
[1759085236409,6.79709737,206.74,206.73,29.45768174]
[1759085236706,6.79709737,206.74,206.73,14.18]
[1759085236904,6.79709737,206.74,206.73,29.45768174]
[1759085240615,6.79709737,206.74,206.73,15.86208773]
[1759085240983,6.79709737,206.74,206.73,14.18]
[1759085245106,6.79709737,206.74,206.73,20.69931503]
[1759085246517,6.79709737,206.74,206.73,14.18]
[1759085246710,7.50709737,206.74,206.73,14.18]
[1759085246888,6.79709737,206.74,206.73,14.18]
[1759085247227,6.79709737,206.74,206.73,15.86208773]
[1759085247395,6.79709737,206.74,206.73,14.18]
[1759085247728,6.79709737,206.74,206.73,20.69931503]
[1759085248787,6.79709737,206.74,206.73,15.86208773]
[1759085248988,6.79709737,206.74,206.73,20.69931503]
[1759085249409,6.79709737,206.74,206.73,71.95490904]
[1759085249723,2.53151834,206.92,206.86,20.0]
[1759085249724,0.71,206.87,206.86,20.0]
[1759085250401,0.71,206.87,206.86,23.62105862]
[1759085250826,0.71,206.87,206.86,21.93897089]
[1759085251447,0.71,206.87,206.86,23.62105862]
[1759085252248,0.71,206.87,206.86,21.93897089]
[1759085255152,2.39208773,206.87,206.86,21.93897089]
[1759085255856,0.71,206.87,206.86,21.93897089]
[1759085256825,2.39208773,206.87,206.86,21.93897089]
[1759085257041,28.39208773,206.87,206.86,21.93897089]
[1759085258348,2.39208773,206.87,206.86,21.93897089]
[1759085258755,0.71,206.87,206.86,21.93897089]
[1759085258954,2.39208773,206.87,206.86,1.93897089]
[1759085259180,2.39208773,206.87,206.74,20.0]
[1759085259181,26.0,206.84,206.74,20.0]
[1759085259471,44.96613662,206.87,206.72,20.0]
[1759085259472,1.68208773,206.75,206.72,20.0]
[1759085259661,1.68208773,206.73,206.71,20.0]
[1759085259968,1.68208773,206.74,206.73,34.55286328]
[1759085260162,0.71,206.74,206.73,34.55286328]
[1759085260531,26.71,206.77,206.73,34.55286328]
[1759085260761,26.0,206.77,206.76,20.0]
[1759085261065,0.71,206.79,206.78,20.0]
[1759085261733,2.39208773,206.79,206.78,20.0]
[1759085261952,2.39208773,206.79,206.78,34.54933437]
[1759085263650,28.39208773,206.79,206.78,14.54933437]
[1759085263968,2.39208773,206.79,206.78,34.54933437]
[1759085265259,0.71,206.79,206.78,34.54933437]
[1759085265855,26.0,206.8,206.78,34.54933437]
[1759085266750,27.68208773,206.8,206.78,34.54933437]
[1759085267051,1.68208773,206.8,206.78,34.54933437]
[1759085269157,1.68208773,206.79,206.78,34.54933437]
[1759085269345,1.68208773,206.79,206.78,20.0]
[1759085269776,1.68208773,206.79,206.78,34.54792328]
[1759085270380,64.18,206.84,206.82,20.0]
[1759085270671,1.68208773,206.83,206.8,20.0]
[1759085271164,26.68,206.82,206.81,14.54792329]
[1759085272334,38.86,206.82,206.81,14.54792329]
[1759085273355,40.54208773,206.82,206.81,14.54792329]
[1759085273538,26.0,206.79,206.76,20.0]
[1759085273738,1.68208773,206.77,206.76,20.0]
[1759085273945,2.36208773,206.77,206.76,20.0]
[1759085274658,2.36208773,206.77,206.76,34.55074573]
[1759085276954,0.68,206.77,206.76,34.55074573]
[1759085279355,2.36208773,206.77,206.76,34.55074573]
[1759085281065,26.0,206.75,206.74,20.0]
[1759085281240,2.36208773,206.75,206.74,20.0]
[1759085281441,2.36208773,206.75,206.72,20.0]
[1759085281667,1.68208773,206.74,206.72,20.0]
[1759085282562,1.68208773,206.74,206.73,14.55286327]
[1759085284450,1.68208773,206.74,206.72,20.0]
[1759085285455,0.68,206.75,206.74,20.0]
[1759085285658,2.36208773,206.75,206.74,20.0]
[1759085287468,2.36208773,206.75,206.72,20.0]
[1759085287657,1.68208773,206.74,206.72,20.0]
[1759085288044,2.36208773,206.74,206.72,20.0]
[1759085288245,1.68208773,206.74,206.72,20.0]
[1759085288561,1.68208773,206.75,206.72,20.0]
[1759085288775,0.68,206.8,206.74,20.0]
[1759085288941,2.36208773,206.8,206.78,20.0]
[1759085289147,28.36208773,206.8,206.78,20.0]
[1759085289346,1.68208773,206.82,206.78,20.0]
[1759085289573,1.68208773,206.82,206.81,20.0]
[1759085289773,26.0,206.79,206.78,20.0]
[1759085289952,28.36208773,206.79,206.76,20.0]
[1759085290151,1.68208773,206.77,206.76,20.0]
[1759085290346,2.36208773,206.77,206.76,20.0]
[1759085290562,2.36208773,206.77,206.73,20.0]
[1759085290768,1.68208773,206.75,206.73,20.0]
[1759085291569,64.76,206.77,206.75,20.0]
[1759085291570,1.68208773,206.76,206.75,20.0]
[1759085291763,2.38208773,206.76,206.75,20.0]
[1759085291956,2.38208773,206.76,206.73,20.0]
[1759085292182,1.68208773,206.76,206.75,20.0]
[1759085292355,2.62670464,206.76,206.75,20.0]
[1759085292750,3.32670464,206.76,206.75,20.0]
[1759085293656,0.7,206.76,206.75,20.0]
[1759085295978,3.32670464,206.76,206.75,20.0]
[1759085296880,0.7,206.76,206.75,20.0]
[1759085297082,26.0,206.76,206.75,20.0]
[1759085297278,26.0,206.76,206.73,22.62670464]
[1759085297782,26.0,206.76,206.75,20.0]
[1759085299487,2.62670464,206.77,206.75,20.0]
[1759085299685,26.0,206.76,206.75,20.0]
[1759085300488,26.7,206.76,206.75,20.0]
[1759085301503,26.0,206.76,206.75,20.0]
[1759085301912,26.0,206.82,206.75,20.0]
[1759085302085,26.0,206.76,206.75,20.0]
[1759085302809,3.32670464,206.77,206.75,20.0]
[1759085303218,0.7,206.76,206.75,20.0]
[1759085303510,3.32670464,206.76,206.75,20.0]
[1759085306495,0.7,206.76,206.75,20.0]
[1759085306695,40.56670464,206.77,206.75,20.0]
[1759085306912,41.26670464,206.77,206.75,20.0]
[1759085307417,37.94,206.77,206.75,20.0]
[1759085308494,38.64,206.77,206.75,20.0]
[1759085309416,37.94,206.77,206.75,20.0]
[1759085309601,0.7,206.76,206.75,20.0]
[1759085309999,0.7,206.79,206.77,20.0]
[1759085310204,41.20670464,206.78,206.77,20.0]
[1759085311196,3.32670464,206.78,206.77,20.0]
[1759085311514,41.20670464,206.78,206.77,20.0]
[1759085311889,41.18670464,206.78,206.77,20.0]
[1759085313399,3.32670464,206.78,206.77,20.0]
[1759085314316,40.48670464,206.79,206.77,20.0]
[1759085314500,40.48670464,206.79,206.69,12.09529276]
[1759085314501,29.32670464,206.82,206.79,20.0]
[1759085314707,67.16670464,206.82,206.79,20.0]
[1759085315116,0.7,206.81,206.79,20.0]
[1759085315527,66.46670464,206.82,206.79,20.0]
[1759085315731,0.7,206.81,206.79,20.0]
[1759085316203,3.32670464,206.81,206.79,20.0]
[1759085316623,2.62670464,206.81,206.79,20.0]
[1759085316817,0.7,206.8,206.79,20.0]
[1759085319416,26.0,206.78,206.77,20.0]
[1759085319626,67.14670464,206.78,206.77,20.0]
[1759085319921,29.32670464,206.78,206.77,20.0]
[1759085320120,3.32670464,206.78,206.77,20.0]
[1759085320915,41.14670464,206.78,206.73,20.0]
[1759085321123,2.62670464,206.74,206.71,20.0]
[1759085321329,3.32670464,206.73,206.71,20.0]
[1759085321507,2.62670464,206.73,206.71,20.0]
[1759085321822,3.32670464,206.73,206.71,20.0]
[1759085322131,2.62670464,206.73,206.71,20.0]
[1759085322362,3.32670464,206.72,206.71,20.0]
[1759085322508,0.7,206.72,206.71,20.0]
[1759085322709,3.32670464,206.72,206.71,20.0]
[1759085323322,2.62670464,206.73,206.71,20.0]
[1759085324037,3.32670464,206.73,206.71,20.0]
[1759085324226,0.7,206.72,206.71,20.0]
[1759085325036,3.32670464,206.72,206.71,20.0]
[1759085325348,2.62670464,206.73,206.71,20.0]
[1759085325528,3.32670464,206.73,206.71,20.0]
[1759085326854,0.7,206.72,206.71,20.0]
[1759085327354,3.32670464,206.72,206.71,20.0]
[1759085327554,0.7,206.72,206.71,20.0]
[1759085329245,26.7,206.72,206.71,20.0]
[1759085329647,26.0,206.71,206.68,20.0]
[1759085329893,3.32670464,206.7,206.68,20.0]
[1759085330568,3.32670464,206.69,206.68,20.0]
[1759085330873,3.32670464,206.69,206.65,20.0]
[1759085330874,26.0,206.67,206.65,20.0]
[1759085331048,26.0,206.67,206.59,2.62670464]
[1759085331049,38.47,206.66,206.62,20.0]
[1759085331244,0.67,206.66,206.65,20.0]
[1759085331466,0.67,206.66,206.63,20.0]
[1759085331467,38.51,206.66,206.63,20.0]
[1759085331776,37.84,206.66,206.65,20.0]
[1759085331962,2.62670464,206.66,206.62,20.0]
[1759085332162,2.62670464,206.65,206.64,20.0]
[1759085332391,41.13670464,206.65,206.64,20.0]
[1759085332555,41.13670464,206.65,206.62,20.0]
[1759085332874,0.67,206.64,206.62,20.0]
[1759085334998,40.11670464,206.65,206.62,20.0]
[1759085335801,2.29670464,206.65,206.62,20.0]
[1759085335982,2.62670464,206.63,206.6,20.0]
[1759085336301,26.0,206.64,206.62,20.0]
[1759085336601,37.82,206.63,206.6,20.0]
[1759085336895,26.0,206.64,206.6,20.0]
[1759085337106,38.49,206.63,206.6,20.0]
[1759085337278,2.62670464,206.62,206.6,20.0]
[1759085337477,3.29670464,206.62,206.6,20.0]
[1759085337687,26.67,206.61,206.6,20.0]
[1759085338379,0.67,206.61,206.6,20.0]
[1759085338890,38.47,206.61,206.6,20.0]
[1759085339096,0.67,206.61,206.6,20.0]
[1759085339298,38.47,206.61,206.6,20.0]
[1759085339803,37.97,206.61,206.6,20.0]
[1759085341002,37.8,206.61,206.6,20.0]
[1759085341303,37.78,206.61,206.6,20.0]
[1759085341478,37.78,206.61,206.58,22.62670464]
[1759085341883,26.0,206.58,206.56,20.0]
[1759085342078,26.0,206.58,206.54,20.0]
[1759085342079,38.45,206.57,206.54,20.0]
[1759085342280,0.67,206.56,206.54,20.0]
[1759085342483,38.53,206.56,206.54,20.0]
[1759085342679,2.62670464,206.58,206.53,0.2]
[1759085342893,26.0,206.54,206.53,0.2]
[1759085343205,63.86,206.55,206.53,0.2]
[1759085343404,26.0,206.55,206.53,0.2]
[1759085343702,63.86,206.55,206.53,0.2]
[1759085345189,63.84,206.55,206.53,0.2]
[1759085345405,37.84,206.59,206.57,20.0]
[1759085345593,37.84,206.59,206.57,22.62670464]
[1759085345787,63.9,206.6,206.58,0.68]
[1759085345982,37.9,206.6,206.58,0.68]
[1759085346187,37.9,206.6,206.59,20.0]
[1759085346398,26.0,206.6,206.59,20.0]
[1759085346598,37.9,206.6,206.59,20.0]
[1759085346784,0.67,206.6,206.59,20.0]
[1759085347102,37.9,206.6,206.59,20.0]
[1759085347706,38.57,206.6,206.59,20.0]
[1759085347901,26.0,206.58,206.57,20.0]
[1759085348697,0.67,206.58,206.55,20.0]
[1759085348900,26.0,206.56,206.55,20.0]
[1759085349206,25.5,206.56,206.55,20.0]
[1759085349509,0.67,206.56,206.55,20.0]
[1759085349695,38.55,206.56,206.55,20.0]
[1759085349891,37.88,206.56,206.55,20.0]
[1759085350202,0.67,206.58,206.55,20.0]
[1759085350387,38.55,206.57,206.55,20.0]
[1759085350582,0.67,206.61,206.56,2.62670464]
[1759085350781,147.36628875,206.67,206.56,2.62670464]
[1759085350782,0.67,206.6,206.56,3.30670464]
[1759085350986,0.67,206.6,206.56,2.62670464]
[1759085351201,26.0,206.57,206.56,2.62670464]
[1759085351597,26.0,206.57,206.56,3.30670464]
[1759085352008,132.8,206.64,206.58,20.0]
[1759085352194,132.8,206.64,206.6,21.68282536]
[1759085352412,26.0,206.61,206.6,21.68282536]
[1759085352999,37.9,206.63,206.6,21.68282536]
[1759085353201,38.6,206.63,206.6,21.68282536]
[1759085353397,38.6,206.63,206.6,20.0]
[1759085353398,26.0,206.61,206.6,20.0]
[1759085353598,0.7,206.62,206.6,20.0]
[1759085354201,37.9,206.61,206.6,20.0]
[1759085357915,38.56,206.62,206.6,20.0]
[1759085358596,0.7,206.62,206.6,20.0]
[1759085358796,37.86,206.62,206.6,20.0]
[1759085359114,38.56,206.61,206.6,20.0]
[1759085359613,26.0,206.59,206.58,20.0]
[1759085359812,26.7,206.59,206.58,20.0]
[1759085360019,64.54,206.59,206.58,20.0]
[1759085360206,38.56,206.59,206.58,20.0]
[1759085361303,26.0,206.56,206.54,20.0]
[1759085361696,63.86,206.56,206.54,20.0]
[1759085363514,26.0,206.6,206.54,20.0]
[1759085363716,0.71,206.56,206.54,20.0]
[1759085363925,37.86,206.55,206.54,20.0]
[1759085364621,0.71,206.56,206.54,20.0]
[1759085364806,37.86,206.55,206.54,20.0]
[1759085364996,38.55,206.56,206.54,20.0]
[1759085365504,0.71,206.56,206.54,20.0]
[1759085365712,37.84,206.55,206.54,20.0]
[1759085365911,38.55,206.56,206.54,20.0]
[1759085366116,0.71,206.55,206.54,20.0]
[1759085366315,38.53,206.55,206.54,20.0]
[1759085366514,26.0,206.58,206.57,20.0]
[1759085366719,0.71,206.64,206.59,20.0]
[1759085366924,0.71,206.67,206.63,1.68282536]
[1759085367121,0.71,206.69,206.63,1.68282536]
[1759085367440,26.0,206.65,206.63,2.39282536]
[1759085367623,37.92,206.66,206.63,1.68282536]
[1759085367830,26.0,206.64,206.63,1.68282536]
[1759085368215,26.0,206.64,206.63,2.39282536]
[1759085368530,0.71,206.68,206.64,20.0]
[1759085368829,26.0,206.65,206.64,20.0]
[1759085369225,37.9,206.66,206.64,20.0]
[1759085369425,0.71,206.67,206.64,20.0]
[1759085369623,37.9,206.66,206.64,20.0]
[1759085372534,38.61,206.66,206.64,20.0]
[1759085372729,37.9,206.66,206.64,20.0]
[1759085374621,38.61,206.66,206.64,20.0]
[1759085374826,26.0,206.63,206.62,20.0]
[1759085375127,26.71,206.63,206.62,20.0]
[1759085375510,64.55,206.63,206.62,20.0]
[1759085376628,26.0,206.67,206.62,22.39282536]
[1759085376828,26.0,206.67,206.64,20.0]
[1759085377037,63.86,206.67,206.64,21.68282536]
[1759085377223,37.86,206.67,206.64,21.68282536]
[1759085377425,26.0,206.68,206.66,20.0]
[1759085377629,37.86,206.67,206.66,20.0]
[1759085377834,38.57,206.67,206.66,20.0]
[1759085378019,0.71,206.67,206.66,20.0]
[1759085378221,38.55,206.67,206.66,20.0]
[1759085378626,37.84,206.67,206.66,20.0]
[1759085379848,26.0,206.68,206.66,20.0]
[1759085380046,37.84,206.67,206.66,20.0]
[1759085385151,38.55,206.67,206.66,20.0]
[1759085387652,40.23282536,206.67,206.66,20.0]
[1759085389152,37.84,206.67,206.66,20.0]
[1759085389338,37.76,206.67,206.66,20.0]
[1759085389537,37.76,206.67,206.66,20.71]
[1759085389929,37.76,206.67,206.66,20.0]
[1759085392524,37.72,206.67,206.66,20.0]
[1759085392728,1.68282536,206.67,206.66,20.0]
[1759085392954,39.40282536,206.67,206.66,20.0]
[1759085393551,37.72,206.67,206.66,20.0]
[1759085395643,39.40282536,206.67,206.66,20.0]
[1759085399356,40.12282536,206.67,206.66,20.0]
[1759085399654,40.06282536,206.67,206.66,20.0]
[1759085399856,2.40282536,206.67,206.66,20.0]
[1759085400457,40.06282536,206.67,206.66,20.0]
[1759085401259,26.0,206.63,206.57,20.0]
[1759085401458,38.4,206.62,206.6,20.0]
[1759085401647,26.0,206.59,206.58,20.0]
[1759085401955,37.68,206.59,206.58,20.0]
[1759085402954,2.40282536,206.59,206.58,20.0]
[1759085403162,40.06282536,206.59,206.58,20.0]
[1759085403364,2.40282536,206.59,206.58,20.0]
[1759085403566,40.06282536,206.59,206.58,20.0]
[1759085404654,39.34282536,206.59,206.58,20.0]
[1759085407164,2.40282536,206.59,206.58,20.0]
[1759085407765,2.40282536,206.59,206.55,20.0]
[1759085407957,1.68282536,206.56,206.55,20.0]
[1759085408164,40.04282536,206.56,206.55,20.0]
[1759085408359,2.40282536,206.56,206.55,20.0]
[1759085408563,40.04282536,206.56,206.55,20.0]
[1759085408744,39.32282536,206.56,206.55,20.0]
[1759085408947,1.68282536,206.56,206.55,20.0]
[1759085409164,40.04282536,206.56,206.53,20.2]
[1759085409353,1.68282536,206.54,206.53,20.2]
[1759085409553,1.68282536,206.55,206.53,20.2]
[1759085409779,37.64,206.54,206.53,20.2]
[1759085410149,1.68282536,206.55,206.53,20.2]
[1759085410471,37.62,206.54,206.53,20.2]
[1759085411250,39.30282536,206.54,206.53,20.2]
[1759085411451,39.30282536,206.54,206.53,0.2]
[1759085411452,1.68282536,206.54,206.53,0.2]
[1759085411652,1.68282536,206.54,206.53,20.2]
[1759085411871,39.30282536,206.54,206.53,20.2]
[1759085412379,40.25253415,206.54,206.53,20.2]
[1759085412976,40.93253415,206.54,206.53,20.2]
[1759085413474,3.31253415,206.54,206.53,0.2]
[1759085414070,40.25253415,206.54,206.53,0.2]
[1759085414275,40.25253415,206.54,206.53,20.2]
[1759085417075,40.25253415,206.54,206.53,0.2]
[1759085417376,40.93253415,206.54,206.53,20.2]
[1759085417780,38.3,206.54,206.53,20.2]
[1759085418163,38.3,206.54,206.53,0.2]
[1759085418358,38.28,206.54,206.53,20.2]
[1759085418567,0.68,206.54,206.53,20.2]
[1759085419067,38.28,206.54,206.53,20.2]
[1759085422300,38.28,206.54,206.53,0.2]
[1759085422463,38.28,206.54,206.53,20.2]
[1759085422863,2.63253415,206.56,206.53,20.2]
[1759085423063,26.0,206.57,206.55,20.0]
[1759085423376,26.0,206.56,206.55,20.72]
[1759085423764,37.56,206.58,206.57,20.0]
[1759085423965,3.35253415,206.58,206.55,20.0]
[1759085424186,132.8,206.6,206.55,20.0]
[1759085424187,2.63253415,206.56,206.55,20.0]
[1759085424494,3.35253415,206.56,206.55,20.0]
[1759085424802,40.93253415,206.56,206.55,20.0]
[1759085424972,26.0,206.54,206.53,20.2]
[1759085425379,63.58,206.54,206.53,20.2]
[1759085425571,37.58,206.54,206.53,20.2]
[1759085426095,3.35253415,206.56,206.53,20.2]
[1759085426586,37.56,206.55,206.53,20.2]
[1759085426990,37.56,206.55,206.54,20.0]
[1759085427391,40.91253415,206.55,206.53,0.2]
[1759085427692,2.63253415,206.54,206.53,0.2]
[1759085428072,40.95253415,206.54,206.53,0.2]
[1759085429571,3.35253415,206.54,206.53,0.2]
[1759085429776,40.93253415,206.54,206.53,0.2]
[1759085430994,40.93253415,206.54,206.51,0.2]
[1759085430995,39.59559401,206.53,206.51,0.2]
[1759085431191,26.0,206.48,206.44,14.56911833]
[1759085431394,26.0,206.44,206.41,20.72]
[1759085431691,26.0,206.44,206.42,0.72]
[1759085431896,37.68,206.43,206.42,0.72]
[1759085433488,40.31253415,206.44,206.43,20.0]
[1759085433801,37.68,206.44,206.42,0.72]
[1759085434096,40.31253415,206.44,206.43,20.0]
[1759085434470,37.68,206.44,206.43,20.0]
[1759085434671,13.59559401,206.52,206.41,20.0]
[1759085434899,2.63253415,206.48,206.45,20.0]
[1759085435088,2.63253415,206.46,206.43,0.72]
[1759085435286,28.63253415,206.44,206.42,20.0]
[1759085435592,2.63253415,206.43,206.4,20.72]
[1759085435777,2.63253415,206.42,206.4,20.72]
[1759085436201,40.31253415,206.42,206.4,20.72]
[1759085436795,37.68,206.42,206.4,20.0]
[1759085437185,2.63253415,206.43,206.4,20.0]
[1759085437386,37.68,206.42,206.4,20.72]
[1759085437587,37.68,206.42,206.4,20.0]
[1759085437797,40.31253415,206.42,206.41,0.72]
[1759085438495,37.68,206.42,206.41,0.72]
[1759085438677,2.63253415,206.43,206.41,0.72]
[1759085438888,40.31253415,206.43,206.42,0.72]
[1759085439088,40.31253415,206.43,206.42,20.72]
[1759085439290,2.63253415,206.43,206.42,20.72]
[1759085439527,40.29253415,206.43,206.42,20.0]
[1759085440019,40.29253415,206.43,206.4,20.72]
[1759085440191,37.66,206.43,206.42,20.0]
[1759085440399,40.29253415,206.43,206.42,20.0]
[1759085440690,2.63253415,206.43,206.42,20.0]
[1759085440920,40.29253415,206.43,206.42,20.0]
[1759085441432,2.63253415,206.43,206.42,20.0]
[1759085441595,40.29253415,206.43,206.42,20.0]
[1759085442518,40.27253415,206.43,206.42,20.0]
[1759085443223,2.63253415,206.43,206.42,20.0]
[1759085443398,40.27253415,206.43,206.42,20.0]
[1759085444296,2.63253415,206.43,206.42,20.0]
[1759085444503,40.27253415,206.43,206.42,20.0]
[1759085444887,40.99253415,206.43,206.42,20.0]
[1759085445508,26.72,206.45,206.42,20.0]
[1759085445700,2.63253415,206.43,206.42,20.0]
[1759085446191,40.25253415,206.43,206.42,20.0]
[1759085446396,2.63253415,206.43,206.42,20.0]
[1759085446596,40.97253415,206.43,206.4,20.0]
[1759085446834,28.63253415,206.41,206.38,20.72]
[1759085447021,66.25253415,206.4,206.38,20.0]
[1759085447207,2.63253415,206.39,206.38,20.0]
[1759085447517,40.27253415,206.39,206.38,20.0]
[1759085448594,40.27253415,206.39,206.38,20.72]
[1759085449194,40.25253415,206.39,206.38,20.0]
[1759085449720,2.63253415,206.39,206.38,20.0]
[1759085449910,40.25253415,206.39,206.38,20.0]
[1759085450108,2.63253415,206.39,206.38,20.0]
[1759085450300,40.25253415,206.39,206.38,20.0]
[1759085451117,2.63253415,206.39,206.38,20.67]
[1759085451514,40.25253415,206.39,206.38,20.67]
[1759085451732,2.63253415,206.39,206.38,20.67]
[1759085452029,40.25253415,206.39,206.38,20.0]
[1759085452328,40.25253415,206.39,206.38,20.67]
[1759085452626,40.23253415,206.39,206.38,20.67]
[1759085452826,2.63253415,206.39,206.38,20.67]
[1759085453027,40.23253415,206.39,206.38,20.67]
[1759085454817,26.0,206.4,206.38,20.67]
[1759085455022,40.23253415,206.39,206.38,20.67]
[1759085457016,40.23253415,206.39,206.38,20.0]
[1759085457414,40.21253415,206.39,206.38,20.0]
[1759085457815,28.63253415,206.4,206.38,20.67]
[1759085458037,66.21253415,206.4,206.39,0.67]
[1759085458212,66.19253415,206.4,206.39,0.67]
[1759085458827,26.0,206.4,206.39,0.67]
[1759085459124,66.19253415,206.4,206.39,0.67]
[1759085459523,66.19253415,206.4,206.38,20.0]
[1759085459727,63.56,206.4,206.39,0.67]
[1759085459931,26.0,206.4,206.39,0.67]
[1759085460316,26.0,206.4,206.38,20.0]
[1759085460831,26.0,206.4,206.39,0.67]
[1759085461029,28.63253415,206.4,206.39,0.67]
[1759085461226,66.21253415,206.4,206.39,0.67]
[1759085461927,66.21253415,206.4,206.38,20.67]
[1759085462737,63.58,206.4,206.38,20.67]
[1759085462907,66.21253415,206.4,206.38,20.67]
[1759085463111,28.63253415,206.4,206.38,20.67]
[1759085463311,2.63253415,206.39,206.38,20.0]